bitfinex/quotes_ETHUSD_20241105
["timestamp","ask_amount","ask_price","bid_price","bid_amount"]
[1730781074196,4.11668,2429.2,2428.7,4.87351]
[1730781074369,4.11701,2429.0,2428.5,4.87373]
[1730781074573,4.11701,2429.0,2428.5,8.99142]
[1730781075179,4.11701,2429.0,2428.5,4.87373]
[1730781075392,5.41923676,2429.0,2428.5,8.9914]
[1730781075686,1.30222676,2429.0,2428.5,4.87373]
[1730781076000,0.88868376,2429.3,2428.5,4.87373]
[1730781076001,1.71218376,2429.3,2428.7,4.11735]
[1730781076198,4.94,2429.3,2428.9,0.7865]
[1730781076704,4.94,2429.3,2428.9,4.90358]
[1730781076883,8.91678761,2429.5,2428.9,4.90358]
[1730781077066,5.00792876,2429.4,2428.9,4.90346]
[1730781077267,5.00792876,2429.4,2429.0,4.1169]
[1730781077489,5.00792876,2429.4,2428.9,0.7865]
[1730781077801,5.00792876,2429.4,2428.9,4.90358]
[1730781077986,4.11651,2429.3,2428.9,0.7865]
[1730781078313,0.91244388,2429.2,2428.9,0.7865]
[1730781078889,0.89167876,2429.4,2429.0,4.876]
[1730781080776,0.89167876,2429.4,2429.0,4.87592]
[1730781081165,4.11582,2429.7,2429.2,4.11654]
[1730781081507,4.11573,2429.7,2429.2,4.89608]
[1730781081674,4.9423,2429.8,2429.2,0.86192283]
[1730781081878,4.9423,2429.8,2429.3,8.2327]
[1730781081879,4.1157,2429.8,2429.3,8.2327]
[1730781082503,8.23138,2429.8,2429.3,4.1163]
[1730781082798,3.8273,2430.0,2429.4,0.8247]
[1730781082799,4.1154,2429.9,2429.4,0.8247]
[1730781082978,4.94263,2430.0,2429.4,4.94092]
[1730781083301,4.94262,2430.0,2429.5,4.11605]
[1730781083507,8.23065,2430.0,2429.5,4.11605]
[1730781083667,4.1155,2429.9,2429.4,4.94092]
[1730781083868,4.938582,2429.9,2429.4,4.94092]
[1730781084602,4.89778,2429.8,2429.4,0.8247]
[1730781084903,4.11581,2429.7,2429.4,0.8247]
[1730781085267,4.89778,2429.8,2429.4,0.8247]
[1730781086201,9.01342,2429.8,2429.5,0.29281463]
[1730781086369,5.8814302,2429.8,2429.4,0.8247]
[1730781086579,5.8814302,2429.8,2429.5,0.29276222]
[1730781086806,9.01351,2429.8,2429.4,0.8247]
[1730781086970,9.01351,2429.8,2429.5,0.29276209]
[1730781086971,4.89778,2429.8,2429.5,0.29276209]
[1730781087296,4.11573,2429.7,2429.4,0.8247]
[1730781087605,4.11573,2429.7,2429.5,0.29279018]
[1730781087760,4.11573,2429.7,2429.4,0.8247]
[1730781087963,4.11573,2429.7,2429.5,0.29279093]
[1730781088162,4.11573,2429.7,2429.4,0.8247]
[1730781088477,4.11573,2429.7,2429.5,0.29282987]
[1730781088691,4.11573,2429.7,2429.4,0.8247]
[1730781088891,4.11573,2429.7,2429.5,0.29283601]
[1730781089088,4.11573,2429.7,2429.4,0.8247]
[1730781089404,9.01349,2429.8,2429.5,0.29284025]
[1730781089612,5.017099,2429.7,2429.4,0.8247]
[1730781089900,5.017099,2429.7,2429.5,0.29291181]
[1730781090106,5.017099,2429.7,2429.4,0.8247]
[1730781090411,4.11533,2430.0,2429.5,0.29299871]
[1730781090569,4.11523,2430.0,2429.7,0.7707]
[1730781090771,4.11523,2430.0,2429.8,0.29299871]
[1730781090971,4.11523,2430.0,2429.7,0.7707]
[1730781091198,4.526953,2429.9,2429.8,0.29294732]
[1730781091412,4.526953,2429.9,2429.8,0.29294803]
[1730781091715,4.526953,2429.9,2429.7,0.7707]
[1730781092172,0.411523,2429.9,2429.7,0.7707]
[1730781092373,4.11523,2430.0,2429.8,0.29284007]
[1730781092604,4.11523,2430.0,2429.7,0.7707]
[1730781092809,8.23055,2430.0,2429.8,0.29282227]
[1730781093006,8.23055,2430.0,2429.7,0.7707]
[1730781093171,0.7551,2430.5,2429.8,0.2928253]
[1730781093374,0.7551,2430.9,2430.4,0.7872]
[1730781093574,4.11424,2430.6,2430.1,8.23002]
[1730781093786,4.11424,2430.6,2430.2,1.53095969]
[1730781094075,8.22859,2430.6,2430.3,0.29260028]
[1730781094285,4.11439,2430.5,2430.2,0.7702]
[1730781094613,4.11439,2430.5,2429.7,0.48828521]
[1730781094614,4.11454,2430.4,2430.3,0.29237627]
[1730781094823,0.7642,2430.4,2429.6,0.7506]
[1730781095121,4.11522,2430.0,2429.7,0.76051251]
[1730781095301,4.11522,2430.0,2429.8,0.7606142]
[1730781095501,4.11522,2430.0,2429.9,0.29253987]
[1730781095880,4.88722,2430.0,2429.9,0.29253987]
[1730781096113,4.11542,2429.9,2429.6,0.7506]
[1730781096410,4.11542,2429.9,2429.7,0.29259866]
[1730781096717,4.11604,2429.6,2429.2,0.8313]
[1730781096891,3.97400761,2429.9,2429.3,0.76094715]
[1730781096892,4.11615,2429.5,2429.3,0.76094715]
[1730781097075,4.11615,2429.5,2429.2,0.8313]
[1730781097076,4.11615,2429.5,2429.4,0.29266793]
[1730781097283,4.939341,2429.5,2429.4,0.29266793]
[1730781098620,4.939341,2429.5,2429.4,0.29279528]
[1730781099601,8.771741,2429.5,2429.4,0.29279528]
[1730781099805,4.94949,2428.9,2428.8,0.46877209]
[1730781099988,4.94949,2428.9,2428.8,0.29299919]
[1730781101308,4.94949,2428.9,2428.2,0.8103]
[1730781101309,4.1176,2428.6,2428.2,0.8103]
[1730781101476,4.1176,2428.6,2428.3,0.76201201]
[1730781101682,4.1176,2428.6,2428.4,0.76201201]
[1730781101980,4.1176,2428.6,2428.5,0.29307748]
[1730781102182,4.1176,2428.6,2428.2,0.8103]
[1730781102496,4.1176,2428.6,2428.3,0.7621326]
[1730781102700,4.941103,2428.6,2428.4,0.29309527]
[1730781102959,4.941103,2428.6,2428.5,0.29309527]
[1730781103714,4.11743,2428.7,2428.5,0.29309527]
[1730781103915,4.11743,2428.7,2428.6,0.29291474]
[1730781104411,4.11743,2428.7,2428.2,0.8103]
[1730781104628,4.11743,2428.7,2428.3,0.76143878]
[1730781104829,4.11727,2428.8,2428.4,0.29285701]
[1730781105028,4.11756,2428.7,2428.5,0.29285701]
[1730781105229,4.11756,2428.7,2428.2,4.92854]
[1730781105427,4.11756,2428.7,2428.3,0.76133321]
[1730781105626,4.11756,2428.7,2428.2,4.92854]
[1730781105855,4.11756,2428.7,2428.3,0.76133184]
[1730781106146,4.11756,2428.7,2428.2,0.8103]
[1730781106360,4.11756,2428.7,2428.3,0.29280739]
[1730781106538,4.11701,2429.0,2428.4,5.16373739]
[1730781106737,4.11701,2429.0,2428.5,0.29280739]
[1730781106738,0.411701,2428.9,2428.5,0.29280739]
[1730781106946,0.411701,2428.9,2428.6,0.29270245]
[1730781107112,0.411701,2428.9,2428.5,4.11776]
[1730781107309,4.11701,2429.0,2428.5,4.11776]
[1730781108071,4.11711,2428.9,2428.4,0.7531]
[1730781108214,0.8153,2428.8,2428.5,0.29272513]
[1730781108410,0.8153,2428.8,2428.4,0.7531]
[1730781108961,0.8153,2428.8,2428.4,4.87103]
[1730781109115,4.11711,2428.9,2428.4,0.7531]
[1730781109316,5.022942,2428.9,2428.4,4.871]
[1730781109518,4.94121,2429.0,2428.4,4.871]
[1730781109818,4.11719,2428.9,2428.4,4.871]
[1730781110933,4.11719,2428.9,2428.4,0.7531]
[1730781112530,4.11719,2428.9,2428.4,4.87093]
[1730781112858,4.94121,2429.0,2428.5,4.11768]
[1730781113357,4.11651,2429.3,2428.8,4.11725]
[1730781113570,4.92726,2429.5,2428.9,4.11707]
[1730781113718,0.492726,2429.4,2428.9,4.11707]
[1730781113918,9.04348,2429.5,2429.0,4.90568]
[1730781114258,9.04348,2429.5,2429.1,4.11674]
[1730781114259,4.11616,2429.5,2429.1,4.11674]
[1730781114560,4.11616,2429.5,2429.0,4.90561]
[1730781114767,4.11616,2429.5,2429.0,0.7888]
[1730781115775,4.11616,2429.5,2429.0,4.90571]
[1730781115977,4.11583,2429.7,2429.1,4.11664]
[1730781116127,4.11583,2429.7,2428.7,7.12736]
[1730781116128,9.01247,2429.9,2429.3,4.11631]
[1730781116329,0.80895276,2429.8,2429.4,0.7936]
[1730781117737,4.92461276,2429.8,2429.4,0.7936]
[1730781120179,4.11574,2429.7,2429.4,0.7936]
[1730781120481,4.11574,2429.7,2429.2,0.7908]
[1730781120632,4.1159,2429.6,2429.2,0.7908]
[1730781120834,0.57060928,2429.7,2429.0,0.7908]
[1730781121074,4.11646,2429.3,2429.0,0.7908]
[1730781121567,0.7812,2429.5,2429.0,4.90771]
[1730781121776,4.89743,2429.5,2429.0,4.90771]
[1730781122965,4.11629,2429.4,2429.0,0.7908]
[1730781123178,4.11648,2429.3,2428.8,4.86768]
[1730781123757,4.11668,2429.2,2428.8,0.7505]
[1730781124272,4.606248,2429.3,2428.8,4.86773]
[1730781124438,4.11661,2429.2,2428.8,0.7505]
[1730781125094,4.11661,2429.2,2428.8,4.86773]
[1730781125370,8.23329,2429.2,2428.8,0.7505]
[1730781125576,4.9889158,2429.2,2428.8,0.7505]
[1730781126336,4.11685,2429.1,2428.6,4.89588]
[1730781126733,4.11685,2429.1,2428.7,0.29306779]
[1730781126935,4.11685,2429.1,2428.6,4.89588]
[1730781127163,4.11697,2429.0,2428.7,0.29309224]
[1730781127378,4.11697,2429.0,2428.6,0.7783]
[1730781127559,5.021807,2429.0,2428.6,0.7783]
[1730781127762,5.021807,2429.0,2428.6,4.89589]
[1730781127971,4.11697,2429.0,2428.6,4.89589]
[1730781128362,4.11697,2429.0,2428.6,0.7783]
[1730781128771,4.11668,2429.2,2428.6,4.89587]
[1730781128951,8.23337,2429.2,2428.7,4.11732]
[1730781129146,4.11676,2429.1,2428.6,4.89587]
[1730781129576,4.11668,2429.2,2428.6,4.89587]
[1730781129779,4.11641,2429.3,2428.8,4.11725]
[1730781129965,4.11634,2429.4,2428.9,4.94738]
[1730781130165,0.411634,2429.3,2428.9,4.94738]
[1730781130387,4.528074,2429.3,2428.9,0.8303]
[1730781130759,4.1166,2429.2,2428.9,0.8303]
[1730781133958,4.11678,2429.1,2428.9,0.8303]
[1730781134682,8.23335,2429.2,2428.9,0.8303]
[1730781134862,9.0978484,2429.2,2428.9,0.8303]
[1730781135196,4.9810984,2429.2,2428.9,0.8303]
[1730781135396,9.0977684,2429.2,2428.9,0.8303]
[1730781135561,8.23327,2429.2,2428.9,0.8303]
[1730781136993,4.11688,2429.1,2428.9,0.8303]
[1730781137381,4.11717,2428.9,2428.5,4.91721]
[1730781137582,4.11717,2428.9,2428.6,0.29332429]
[1730781137752,4.11717,2428.9,2428.5,4.91721]
[1730781137956,4.11717,2428.9,2428.6,0.29334187]
[1730781138192,4.11717,2428.9,2428.5,4.91721]
[1730781138388,4.11717,2428.9,2428.6,0.29335311]
[1730781138694,4.11717,2428.9,2428.5,4.91721]
[1730781138856,4.11717,2428.9,2428.6,0.29335194]
[1730781139057,4.11717,2428.9,2428.5,4.91721]
[1730781139258,4.11727,2428.8,2428.6,0.29335111]
[1730781139458,4.940714,2428.8,2428.5,0.7995]
[1730781139691,4.940714,2428.8,2428.6,0.29338732]
[1730781139885,4.940714,2428.8,2428.4,0.46944482]
[1730781140095,4.940714,2428.8,2428.5,0.29340263]
[1730781140300,4.90777,2428.9,2428.3,4.9374]
[1730781140301,4.95138473,2428.7,2428.3,0.8193]
[1730781140525,4.1176,2428.6,2428.4,0.29343294]
[1730781140715,4.1176,2428.6,2428.3,0.8193]
[1730781140919,4.11752,2428.7,2428.4,0.29346394]
[1730781141113,4.11752,2428.7,2428.3,0.8193]
[1730781141293,4.608322,2428.7,2428.4,0.29345414]
[1730781141626,4.608322,2428.7,2428.3,0.8193]
[1730781141832,4.608322,2428.7,2428.4,0.29342641]
[1730781142131,4.608322,2428.7,2428.3,0.8193]
[1730781142430,4.608322,2428.7,2428.4,0.29344814]
[1730781142629,4.608322,2428.7,2428.3,0.8193]
[1730781142789,4.608322,2428.7,2428.4,0.29338843]
[1730781142989,4.608322,2428.7,2428.3,0.8193]
[1730781143193,4.90782,2428.9,2428.4,4.41121684]
[1730781143387,4.88548,2429.1,2428.6,4.11751]
[1730781143600,4.88548,2429.1,2428.7,1.0693804]
[1730781143601,4.88545,2429.1,2428.7,1.0693804]
[1730781143839,4.88545,2429.1,2428.7,0.7761]
[1730781144028,4.11718,2428.9,2428.5,0.7761]
[1730781144226,8.23436,2428.9,2428.5,0.7761]
[1730781144405,4.11718,2428.9,2428.6,0.29328267]
[1730781144724,8.23436,2428.9,2428.5,0.7761]
[1730781144928,8.23436,2428.9,2428.6,0.2933031]
[1730781145130,8.23436,2428.9,2428.5,0.7761]
[1730781145329,4.11718,2428.9,2428.6,0.29329975]
[1730781145495,8.23437,2428.9,2428.5,0.7761]
[1730781145835,4.11718,2428.9,2428.5,0.7761]
[1730781146041,4.11718,2428.9,2428.6,0.29327992]
[1730781146327,4.11718,2428.9,2428.5,0.7761]
[1730781146529,4.11717,2428.9,2428.6,0.29331345]
[1730781146752,8.23441,2428.9,2428.5,0.7761]
[1730781147033,4.11717,2428.9,2428.6,0.29332065]
[1730781147240,8.23439,2428.9,2428.5,0.7761]
[1730781147397,4.11717,2428.9,2428.6,0.29340455]
[1730781147731,4.11717,2428.9,2428.5,0.7761]
[1730781147732,4.11736,2428.8,2428.5,0.7761]
[1730781147893,4.11736,2428.8,2428.6,0.29341144]
[1730781148108,4.11736,2428.8,2428.5,0.7761]
[1730781148337,4.11736,2428.8,2428.6,0.29341183]
[1730781148534,4.11736,2428.8,2428.5,0.7761]
[1730781148843,4.11736,2428.8,2428.6,0.2935114]
[1730781149052,4.11736,2428.8,2428.5,0.7761]
[1730781149249,4.11736,2428.8,2428.6,0.29351114]
[1730781149409,4.11736,2428.8,2428.7,0.29351114]
[1730781150341,4.11736,2428.8,2428.5,0.7761]
[1730781150554,4.11736,2428.8,2428.6,0.29350025]
[1730781150712,4.11736,2428.8,2428.7,0.29350025]
[1730781150914,0.488577,2428.9,2428.7,0.29350025]
[1730781151132,4.11701,2429.0,2428.6,4.11759]
[1730781151334,4.11701,2429.0,2428.7,0.29344758]
[1730781151546,4.11688,2429.1,2428.8,0.29344758]
[1730781151849,4.11688,2429.1,2428.6,4.11759]
[1730781151850,4.11688,2429.1,2428.6,8.23499]
[1730781152039,4.11688,2429.1,2428.7,0.29344641]
[1730781152240,4.11709,2428.9,2428.8,0.29344641]
[1730781152413,4.528799,2428.9,2428.8,0.29344641]
[1730781152614,5.330599,2428.9,2428.5,0.7761]
[1730781152808,5.330599,2428.9,2428.6,0.29354012]
[1730781153051,5.330599,2428.9,2428.7,0.29353847]
[1730781153260,5.330599,2428.9,2428.5,0.7761]
[1730781153524,4.11734,2428.8,2428.6,0.29359881]
[1730781153866,4.11734,2428.8,2428.7,0.29359881]
[1730781156076,4.11734,2428.8,2428.1,4.92442]
[1730781156258,4.11734,2428.8,2428.2,1.35119937]
[1730781156259,4.11761,2428.6,2428.2,1.35119937]
[1730781156581,4.11761,2428.6,2428.1,4.92442]
[1730781156870,4.11808,2428.4,2428.2,0.76368366]
[1730781157076,4.11808,2428.4,2427.9,0.8061]
[1730781157077,4.1181,2428.3,2427.9,0.8061]
[1730781157237,4.1181,2428.3,2428.0,1.35148883]
[1730781157569,0.7878,2428.5,2428.1,0.76387463]
[1730781157768,0.7878,2428.5,2428.2,0.76387463]
[1730781157769,4.11778,2428.5,2428.2,0.76387463]
[1730781157928,4.11778,2428.5,2428.3,0.29379386]
[1730781158132,4.11778,2428.5,2428.4,0.29379386]
[1730781158344,4.11754,2428.7,2428.4,0.29379386]
[1730781158541,4.11721,2428.9,2428.5,0.29379386]
[1730781158542,4.91591,2428.9,2428.5,0.29379386]
[1730781158773,5.80487176,2428.9,2428.6,0.29379386]
[1730781158974,4.11735,2428.8,2428.7,0.29379386]
[1730781159169,4.11735,2428.8,2428.3,9.04383]
[1730781159334,4.11735,2428.8,2428.4,0.76322615]
[1730781159540,5.80487176,2428.9,2428.5,0.29354445]
[1730781159763,4.11729,2428.8,2428.6,0.29354445]
[1730781159963,5.10950618,2428.8,2428.3,4.9258]
[1730781160273,4.11729,2428.8,2428.4,0.76326336]
[1730781160437,4.11729,2428.8,2428.5,0.29355876]
[1730781160642,4.11729,2428.8,2428.6,0.29355876]
[1730781160836,4.11729,2428.8,2428.3,4.9258]
[1730781161149,4.11729,2428.8,2428.4,0.7632863]
[1730781161350,4.11729,2428.8,2428.5,0.29356758]
[1730781161554,4.11742,2428.7,2428.6,0.29356758]
[1730781161740,4.11838,2428.2,2427.8,0.7978]
[1730781162080,8.23675,2428.2,2427.9,0.76347144]
[1730781162238,8.23674,2428.2,2428.0,0.76347144]
[1730781162437,4.67387619,2428.2,2428.1,0.29363879]
[1730781163356,4.11846,2428.1,2427.8,0.7978]
[1730781163679,4.11846,2428.1,2427.9,0.29353998]
[1730781163680,4.11865,2428.0,2427.9,0.29353998]
[1730781164861,4.11846,2428.1,2427.9,0.29353998]
[1730781165174,4.11846,2428.1,2427.6,4.8749]
[1730781165175,8.23699,2428.1,2428.0,0.29342356]
[1730781165471,8.23699,2428.1,2427.7,0.46951585]
[1730781165779,8.23699,2428.1,2427.8,0.2933854]
[1730781165965,8.23699,2428.1,2427.9,0.2933854]
[1730781166151,8.23699,2428.1,2427.6,4.8749]
[1730781166486,8.23699,2428.1,2427.7,0.76280742]
[1730781166641,8.23699,2428.1,2427.8,0.2933834]
[1730781166842,8.23699,2428.1,2427.9,0.2933834]
[1730781167043,8.23699,2428.1,2427.7,0.46936481]
[1730781167265,8.23699,2428.1,2427.6,4.8749]
[1730781167266,8.23699,2428.1,2427.8,0.29333009]
[1730781167470,4.11846,2428.1,2427.9,0.29333009]
[1730781167651,4.11846,2428.1,2427.6,4.87488]
[1730781167974,4.11863,2428.0,2427.7,0.76249945]
[1730781168155,4.11863,2428.0,2427.8,0.29326495]
[1730781168334,4.11878,2427.9,2427.4,4.89934]
[1730781168540,4.11878,2427.9,2427.5,0.76251718]
[1730781168846,4.11878,2427.9,2427.4,9.60549459]
[1730781168847,4.11878,2427.9,2427.6,0.29327177]
[1730781169065,4.11878,2427.9,2427.7,0.29327177]
[1730781169372,4.11878,2427.9,2427.5,0.46928569]
[1730781169582,4.11878,2427.9,2427.6,0.2932371]
[1730781169879,4.11878,2427.9,2427.7,0.2932371]
[1730781170079,4.11878,2427.9,2427.5,0.46917978]
[1730781170262,4.11878,2427.9,2427.6,0.29323401]
[1730781170481,4.11878,2427.9,2427.7,0.29323401]
[1730781170669,4.11878,2427.9,2427.5,4.11943]
[1730781170877,4.91362,2428.0,2427.6,0.29316389]
[1730781171189,4.91362,2428.0,2427.7,0.29316389]
[1730781171343,4.91362,2428.0,2427.5,4.11943]
[1730781171548,4.91362,2428.0,2427.6,0.29310706]
[1730781171819,4.91362,2428.0,2427.5,4.11943]
[1730781171983,4.91362,2428.0,2427.6,0.29310789]
[1730781172175,4.91362,2428.0,2427.5,4.11943]
[1730781172481,4.91362,2428.0,2427.6,0.29311439]
[1730781172660,4.91362,2428.0,2427.5,4.11943]
[1730781172856,4.91362,2428.0,2427.6,0.29305689]
[1730781173190,4.91362,2428.0,2427.5,4.11943]
[1730781173490,4.91362,2428.0,2427.6,0.29303102]
[1730781173650,4.91362,2428.0,2427.5,4.11943]
[1730781173843,4.11854,2428.1,2427.6,4.41230334]
[1730781174069,4.11854,2428.1,2427.8,0.7823]
[1730781174447,4.11866,2428.0,2427.6,4.94359]
[1730781174643,4.11866,2428.0,2427.7,0.2929997]
[1730781174880,4.11866,2428.0,2427.6,4.94359]
[1730781175189,0.7944,2428.2,2427.6,4.94359]
[1730781175190,4.91269,2428.2,2427.7,4.41203387]
[1730781175348,4.91269,2428.2,2427.8,0.29297797]
[1730781175545,4.94738,2428.1,2427.6,4.11919]
[1730781175855,4.11862,2428.0,2427.7,0.29298947]
[1730781176187,4.11862,2428.0,2427.4,4.90131]
[1730781176349,4.11862,2428.0,2427.5,0.76184892]
[1730781176549,4.11862,2428.0,2427.6,0.29301475]
[1730781176849,4.11888,2427.9,2427.7,0.29301475]
[1730781177179,4.11888,2427.9,2427.4,4.90131]
[1730781177386,4.11888,2427.9,2427.5,0.29305567]
[1730781177554,4.11888,2427.9,2427.6,0.29305567]
[1730781177749,4.11888,2427.9,2427.4,4.90131]
[1730781177950,4.11905,2427.8,2427.5,0.76193521]
[1730781178179,4.11904,2427.8,2427.6,0.29305378]
[1730781178370,4.92032,2427.7,2427.2,4.70601398]
[1730781178603,4.92033,2427.7,2427.3,0.29311345]
[1730781178769,4.92033,2427.7,2427.2,4.90608]
[1730781178770,4.92033,2427.7,2427.2,9.02596]
[1730781178976,4.92033,2427.7,2427.3,0.29316916]
[1730781179184,4.92033,2427.7,2427.2,9.02596]
[1730781179406,4.11941,2427.6,2427.2,0.7862]
[1730781179706,4.11993,2427.3,2427.1,0.0598613]
[1730781179907,4.11963,2427.4,2427.1,0.0598613]
[1730781180110,8.23937,2427.4,2427.1,0.0598613]
[1730781180418,5.023687,2427.4,2427.1,0.0598613]
[1730781181080,9.143457,2427.4,2427.1,0.0598613]
[1730781181282,5.023687,2427.4,2427.1,0.0598613]
[1730781181485,0.904057,2427.4,2427.1,0.0598613]
[1730781181682,4.11964,2427.4,2427.1,0.0598613]
[1730781182486,4.92049,2427.6,2427.1,4.1799813]
[1730781183974,4.92049,2427.6,2427.2,0.8154]
[1730781184203,4.11946,2427.5,2427.2,0.8154]
[1730781184585,0.8012,2427.6,2427.2,0.8154]
[1730781184779,0.8012,2427.6,2427.2,4.93527]
[1730781185003,4.92052,2427.6,2427.2,0.8154]
[1730781185311,5.39197656,2427.6,2427.2,0.8154]
[1730781185514,5.39197656,2427.6,2427.2,0.6154]
[1730781185814,4.11946,2427.5,2427.2,0.6154]
[1730781185985,8.23903,2427.5,2427.2,0.6154]
[1730781186878,4.11946,2427.5,2427.2,0.6154]
[1730781187078,8.77826166,2427.5,2427.2,0.6154]
[1730781187275,4.11976,2427.4,2427.1,0.0598613]
[1730781187474,4.11976,2427.4,2426.9,4.0803013]
[1730781187674,4.11976,2427.4,2427.0,0.29313026]
[1730781187932,4.11976,2427.4,2426.9,4.0803013]
[1730781187933,4.11976,2427.4,2427.1,0.29313229]
[1730781188074,5.07772317,2427.4,2426.9,4.0803013]
[1730781188276,5.07772317,2427.4,2427.0,0.29313379]
[1730781188501,5.07772317,2427.4,2426.9,4.0803013]
[1730781188502,5.07772317,2427.4,2427.1,1.10263379]
[1730781188699,5.07772317,2427.4,2427.1,0.8095]
[1730781188893,0.95796317,2427.4,2427.1,0.8095]
[1730781189091,8.77827166,2427.5,2427.1,0.8095]
[1730781189290,0.53921166,2427.5,2427.1,0.8095]
[1730781189479,0.9104,2427.8,2427.2,0.29315859]
[1730781189819,0.1,2427.8,2427.4,0.7733]
[1730781189978,4.21903,2427.8,2427.4,0.7733]
[1730781190321,0.1,2427.8,2427.4,4.89292]
[1730781190520,0.1,2427.8,2427.5,4.4125392]
[1730781190692,0.1,2427.8,2427.5,4.11935]
[1730781191324,0.1,2427.8,2426.9,7.46260003]
[1730781191325,0.1,2427.8,2427.7,0.7733]
[1730781191523,0.1,2427.8,2427.7,5.18566151]
[1730781191884,0.1,2427.8,2427.7,0.29324151]
[1730781193135,0.1,2427.8,2427.7,4.41236151]
[1730781193630,0.1,2427.8,2427.7,0.29324151]
[1730781194340,0.1,2427.8,2427.7,0.293306]
[1730781195834,0.1,2427.8,2427.6,4.11924]
[1730781196130,0.1,2427.8,2427.5,4.87083]
[1730781196429,0.1,2427.8,2427.5,8.9902]
[1730781196643,0.1,2427.8,2427.6,4.11927]
[1730781197231,0.1,2427.8,2427.7,0.29334753]
[1730781198817,0.1,2427.8,2427.7,4.41246753]
[1730781199143,0.1,2427.8,2427.7,4.90032]
[1730781200834,0.1,2427.8,2427.7,4.98269556]
[1730781201039,0.1,2427.8,2427.7,7.98269556]
[1730781201441,0.1,2427.8,2427.7,7.90032]
[1730781202254,0.1,2427.8,2427.7,9.24860077]
[1730781202453,0.1,2427.8,2427.7,8.66239057]
[1730781203063,0.1,2427.8,2427.7,7.90032]
[1730781203208,0.1,2427.8,2427.7,8.66226805]
[1730781207114,0.1,2427.8,2427.7,9.21226805]
[1730781207314,0.1,2427.8,2427.7,9.79776288]
[1730781210522,0.1,2427.8,2427.7,8.45032]
[1730781210720,0.1,2427.8,2427.7,9.79570969]
[1730781211815,0.1,2427.8,2427.7,8.45032]
[1730781212022,0.1,2427.8,2427.7,9.79583801]
[1730781217354,0.1,2427.8,2427.7,11.50765781]
[1730781219056,0.1,2427.8,2427.7,11.99518946]
[1730781219633,0.1,2427.8,2427.7,11.50765781]
[1730781220973,0.8229,2428.7,2428.5,4.11766]
[1730781221283,0.8229,2428.7,2428.6,0.2924959]
[1730781222167,0.8229,2428.7,2428.3,4.11798]
[1730781222375,0.8229,2428.7,2428.4,0.76204781]
[1730781222570,0.8229,2428.7,2428.5,0.29306022]
[1730781222782,0.8229,2428.7,2428.3,4.11798]
[1730781222979,5.434356,2428.7,2428.4,0.29308374]
[1730781223196,5.434356,2428.7,2428.5,0.29308374]
[1730781223355,5.434356,2428.7,2428.3,4.11798]
[1730781223556,5.434356,2428.7,2428.4,0.29313161]
[1730781223855,5.434356,2428.7,2428.5,0.29313161]
[1730781224069,5.434356,2428.7,2428.3,4.11798]
[1730781224271,5.434356,2428.7,2428.4,0.29312971]
[1730781224469,5.434356,2428.7,2428.5,0.29312971]
[1730781224692,5.434356,2428.7,2428.3,4.11798]
[1730781225184,5.434356,2428.7,2428.4,0.29312739]
[1730781225394,5.434356,2428.7,2428.5,0.29312739]
[1730781225602,5.434356,2428.7,2428.3,4.11798]
[1730781225771,5.434356,2428.7,2428.4,0.2931199]
[1730781225974,5.434356,2428.7,2428.5,0.2931199]
[1730781226277,0.5434356,2428.6,2428.3,8.136]
[1730781226578,0.5434356,2428.6,2428.4,0.29308001]
[1730781226773,0.5434356,2428.6,2428.5,0.29308001]
[1730781230092,1.316916,2428.7,2428.5,0.29308001]
[1730781230391,1.316916,2428.7,2428.3,4.01798]
[1730781230596,1.316916,2428.7,2428.4,0.29339523]
[1730781230796,1.316916,2428.7,2428.5,0.29339523]
[1730781231001,1.316916,2428.7,2428.3,4.01798]
[1730781231294,1.316916,2428.7,2428.4,0.76282943]
[1730781231590,0.5434216,2428.6,2428.5,0.29339187]
[1730781231798,0.5434216,2428.6,2428.3,4.01798]
[1730781232098,0.5434216,2428.6,2428.4,0.29339816]
[1730781232393,0.5434216,2428.6,2428.5,0.29340122]
[1730781235493,0.5434216,2428.6,2428.3,8.136]
[1730781235664,0.5434216,2428.6,2428.5,0.29361202]
[1730781236202,1.316916,2428.7,2428.5,4.41136202]
[1730781236491,0.7698,2428.9,2428.6,0.29361202]
[1730781236658,0.7698,2428.9,2428.7,0.29361202]
[1730781236861,0.7698,2428.9,2428.6,4.11758]
[1730781237059,0.7698,2428.9,2428.7,0.29358642]
[1730781237259,0.7698,2428.9,2428.6,4.11758]
[1730781237260,1.258488,2428.9,2428.6,4.11758]
[1730781237497,5.375588,2428.9,2428.7,0.29358485]
[1730781237656,5.375588,2428.9,2428.3,4.89346]
[1730781237657,5.375588,2428.9,2428.5,4.11776]
[1730781237860,5.375588,2428.9,2428.6,0.29363229]
[1730781238157,1.258488,2428.9,2428.7,0.29363229]
[1730781238363,0.5375568,2428.8,2428.5,4.11776]
[1730781238565,0.5375568,2428.8,2428.6,0.29360045]
[1730781238908,0.5375568,2428.8,2428.7,0.29360045]
[1730781241682,0.5375568,2428.8,2428.5,4.11776]
[1730781242333,0.5375568,2428.8,2428.6,0.29364214]
[1730781242527,0.5375568,2428.8,2428.7,0.29364214]
[1730781245521,0.5375568,2428.8,2428.7,0.29373463]
[1730781246442,5.4246068,2428.8,2428.7,0.29373463]
[1730781246598,0.7667,2428.7,2428.3,4.11807]
[1730781246796,1.30916068,2428.7,2428.4,0.7640447]
[1730781247048,1.30916068,2428.7,2428.5,0.29385927]
[1730781247341,5.42671068,2428.7,2428.6,0.29385927]
[1730781249417,5.42671068,2428.7,2428.6,0.29392295]
[1730781249903,0.8001,2428.0,2427.7,0.48991027]
[1730781250138,0.8001,2428.0,2427.8,1.35274147]
[1730781250436,0.8001,2428.0,2427.5,9.52996027]
[1730781250437,0.8001,2428.0,2427.9,0.29406617]
[1730781251147,4.91871,2428.0,2427.9,0.29406617]